fUST/lending_fUST_20240119
["ID","MTS","AMOUNT","RATE_DAILY","PERIOD"]
[312109980,1705633843860,-500.0,0.00033698,3]
[312109981,1705633843869,-1824.37,0.00033698,3]
[312109982,1705633843881,-500.0,0.00033698,3]
[312109983,1705633843890,-532.07,0.0003387,3]
[312109984,1705633843899,-532.07,0.00033871,3]
[312109985,1705633843909,-532.07,0.00033971,3]
[312109986,1705633843918,-500.0,0.00033972,3]
[312109987,1705633843927,-500.0,0.00033972,3]
[312109988,1705633843936,-500.0,0.00033972,3]
[312109989,1705633843945,-500.0,0.00033972,3]
[312109990,1705633843955,-503.84127072,0.00033972,3]
[312109991,1705633843965,-500.0,0.00033972,3]
[312109992,1705633843975,-628.86,0.00033972,3]
[312109993,1705633843984,-500.0,0.00033972,3]
[312109994,1705633843993,-798.3,0.00033972,3]
[312109995,1705633844002,-7307.61,0.00033972,3]
[312109996,1705633844011,-500.0,0.00033972,3]
[312109997,1705633844021,-837.94,0.00033972,3]
[312109998,1705633844030,-1692.09,0.00033972,3]
[312109999,1705633844039,-675.81,0.00033972,3]
[312110000,1705633844048,-5244.35,0.00033972,3]
[312110001,1705633844057,-1051.48,0.00033972,3]
[312110002,1705633844066,-500.0,0.00033972,3]
[312110003,1705633844075,-500.0,0.00033972,3]
[312110004,1705633844084,-1480.07,0.00033972,3]
[312110005,1705633844094,-842.38,0.00033972,3]
[312110006,1705633844103,-500.0,0.00033972,3]
[312110007,1705633844113,-500.0,0.00033972,3]
[312110008,1705633844122,-500.0,0.00033972,3]
[312110009,1705633844132,-500.0,0.00033972,3]
[312110010,1705633844142,-500.0,0.00033972,3]
[312110011,1705633844151,-500.0,0.00033972,3]
[312110012,1705633844160,-500.0,0.00033972,3]
[312110013,1705633844169,-702.98,0.00033972,3]
[312110014,1705633844178,-551.99,0.00033972,3]
[312110015,1705633844188,-762.43,0.00033972,3]
[312110016,1705633844197,-2736.19,0.00033972,3]
[312110017,1705633844207,-616.54,0.00033972,3]
[312110018,1705633844216,-634.59,0.00033972,3]
[312110019,1705633844226,-2421.5,0.00033972,3]
[312110020,1705633844235,-500.0,0.00033972,3]
[312110021,1705633844244,-1824.37,0.00033972,3]
[312110022,1705633844253,-500.0,0.00033972,3]
[312110023,1705633844263,-532.07,0.00034245,3]
[312110024,1705633844272,-500.0,0.00034246,3]
[312110025,1705633844283,-500.0,0.00034246,3]
[312110026,1705633844292,-500.0,0.00034246,3]
[312110027,1705633844301,-500.0,0.00034246,3]
[312110028,1705633844310,-628.86,0.00034246,3]
[312110029,1705633844319,-500.0,0.00034246,3]
[312110030,1705633844328,-798.3,0.00034246,3]
[312110031,1705633844337,-7307.61,0.00034246,3]
[312110032,1705633844346,-837.94,0.00034246,3]
[312110033,1705633844355,-1692.09,0.00034246,3]
[312110034,1705633844364,-675.81,0.00034246,3]
[312110035,1705633844373,-5244.35,0.00034246,3]
[312110036,1705633844382,-1051.48,0.00034246,3]
[312110037,1705633844391,-500.0,0.00034246,3]
[312110038,1705633844400,-500.0,0.00034246,3]
[312110039,1705633844409,-1480.07,0.00034246,3]
[312110040,1705633844419,-842.38,0.00034246,3]
[312110041,1705633844428,-500.0,0.00034246,3]
[312110042,1705633844438,-314.91666345,0.00034246,3]
[312110043,1705633844447,-500.0,0.00034246,3]
[312110044,1705633844457,-200.94809308,0.00034246,3]
[312110045,1705633844466,-500.0,0.00034246,3]
[312110046,1705633844475,-500.0,0.00034246,3]
[312110047,1705633844484,-702.98,0.00034246,3]
[312110048,1705633844493,-551.99,0.00034246,3]
[312110049,1705633844504,-762.43,0.00034246,3]
[312110050,1705633844514,-2736.19,0.00034246,3]
[312110051,1705633844523,-616.54,0.00034246,3]
[312110052,1705633844532,-634.59,0.00034246,3]
[312110053,1705633844541,-2421.5,0.00034246,3]
[312110054,1705633844552,-500.0,0.00034246,3]
[312110055,1705633844561,-1824.37,0.00034246,3]
[312110056,1705633844570,-500.0,0.00034246,3]
[312110057,1705633844579,-532.07,0.00034519,3]
[312110058,1705633844589,-410.95577119,0.0003452,3]
[312110059,1705633844598,-500.0,0.0003452,3]
[312110060,1705633844607,-500.0,0.0003452,3]
[312110061,1705633844616,-500.0,0.0003452,3]
[312110062,1705633844625,-628.86,0.0003452,3]
[312110063,1705633844634,-500.0,0.0003452,3]
[312110064,1705633844643,-798.3,0.0003452,3]
[312110065,1705633844652,-7307.61,0.0003452,3]
[312110066,1705633844661,-837.94,0.0003452,3]
[312110067,1705633844670,-1692.09,0.0003452,3]
[312110068,1705633844679,-675.81,0.0003452,3]
[312110069,1705633844689,-5244.35,0.0003452,3]
[312110070,1705633844699,-1051.48,0.0003452,3]
[312110071,1705633844709,-500.0,0.0003452,3]
[312110072,1705633844717,-500.0,0.0003452,3]
[312110073,1705633844726,-1480.07,0.0003452,3]
[312110074,1705633844736,-842.38,0.0003452,3]
[312110075,1705633844745,-500.0,0.0003452,3]
[312110076,1705633844754,-500.0,0.0003452,3]
[312110077,1705633844764,-500.0,0.0003452,3]
[312110078,1705633844773,-500.0,0.0003452,3]
[312110079,1705633844782,-702.98,0.0003452,3]
[312110080,1705633844791,-551.99,0.0003452,3]
[312110081,1705633844800,-762.43,0.0003452,3]
[312110082,1705633844809,-2736.19,0.0003452,3]
[312110083,1705633844818,-616.54,0.0003452,3]
[312110084,1705633844827,-634.59,0.0003452,3]
[312110085,1705633844837,-2421.5,0.0003452,3]
[312110086,1705633844846,-500.0,0.0003452,3]
[312110087,1705633844855,-1824.37,0.0003452,3]
[312110088,1705633844864,-500.0,0.0003452,3]
[312110089,1705633844873,-532.07,0.00034562,3]
[312110090,1705633844886,-9125.08719888,0.00034661,4]
[312110091,1705633844896,-5000.0,0.00034661,7]
[312110092,1705633844905,-2423.52144774,0.00034661,4]
[312110093,1705633844969,-1850.3568932,0.00034661,4]
[312110112,1705633845991,-500.0,0.00032876,2]
[312110113,1705633846000,-38.61450309,0.00032876,2]
[312110165,1705634833099,-1021.54036688,0.00030111,30]
[312110166,1705634833123,-485.43481522,0.00030112,2]
[312110167,1705634833149,-5336.10485558,0.00030113,7]
[312110168,1705634833188,-164.993568,0.00030137,2]
[312110169,1705634833224,-168.733565,0.00030382,2]
[312110170,1705634833251,-304.9276713,0.00031242,2]
[312110171,1705634833277,-541.9852255,0.00032146,2]
[312110172,1705634833302,-171.7072494,0.000326,2]
[312110173,1705634833331,-1386.27108219,0.00032792,2]
[312110174,1705634833355,-2995.10791787,0.00032874,4]
[312110175,1705634833381,-165.74378614,0.00032874,4]
[312110176,1705634833405,-703.88398565,0.00032874,3]
[312110179,1705634953111,-3988.92142032,0.00029586,2]
[312110180,1705634953132,-538.98571523,0.00029587,5]
[312110222,1705635032112,-59.95882168,0.00029587,5]
[312110224,1705635032122,-305.51246618,0.00029587,2]
[312110226,1705635032131,-261.40839953,0.00029587,2]
[312110228,1705635032140,-161.5880001,0.00030137,2]
[312110230,1705635032150,-1745.78,0.00032866,3]
[312110232,1705635032159,-1454.82,0.00032866,3]
[312110233,1705635032169,-67.78778525,0.00032874,3]
[312110235,1705635032178,-1595.05301928,0.00032874,4]
[312110237,1705635032187,-159.58246936,0.00032874,4]
[312110238,1705635032196,-960.41320447,0.00032875,4]
[312110240,1705635032206,-2088.71588189,0.00032876,4]
[312110241,1705635032216,-300.0,0.00032876,4]
[312110243,1705635032226,-155.33272812,0.00032876,2]
[312110245,1705635032238,-470.32965818,0.00032876,2]
[312110246,1705635032251,-1918.59408225,0.00032876,4]
[312110247,1705635032261,-500.0,0.00032876,2]
[312110248,1705635032270,-363.7894806,0.00032876,2]
[312110249,1705635032279,-500.0,0.00032876,2]
[312110250,1705635032288,-500.0,0.00032876,2]
[312110251,1705635032297,-500.0,0.00032876,2]
[312110252,1705635032307,-500.0,0.00032876,2]
[312110253,1705635032316,-500.0,0.00032876,2]
[312110254,1705635032326,-502.80187139,0.00032876,2]
[312110255,1705635032335,-500.0,0.00032876,2]
[312110256,1705635032345,-504.68063983,0.00032876,2]
[312110257,1705635032354,-500.0,0.00032876,2]
[312110258,1705635032363,-500.0,0.00032876,14]
[312110260,1705635032372,-500.0,0.00032876,2]
[312110261,1705635032381,-502.6959281,0.00032876,2]
[312110262,1705635032392,-501.15009695,0.00032876,2]
[312110263,1705635032401,-220.94293272,0.00032876,2]
[312110264,1705635032411,-462.82894798,0.00032876,2]
[312110265,1705635032421,-500.0,0.00032876,2]
[312110266,1705635032431,-500.0,0.00032876,2]
[312110267,1705635032441,-502.4340676,0.00032876,2]
[312110268,1705635032450,-500.0,0.00032876,2]
[312110269,1705635032459,-521.3858914,0.00032876,2]
[312110270,1705635032469,-502.82563989,0.00032876,2]
[312110271,1705635032481,-504.90585891,0.00032876,2]
[312110272,1705635032491,-500.0,0.00032876,2]
[312110273,1705635032500,-500.0,0.00032876,2]
[312110274,1705635032510,-150.0,0.00032876,2]
[312110275,1705635032519,-500.0,0.00032876,2]
[312110276,1705635032528,-500.0,0.00032876,2]
[312110277,1705635032537,-500.0,0.00032876,2]
[312110278,1705635032546,-500.0,0.00032876,2]
[312110279,1705635032556,-500.0,0.00032876,2]
[312110280,1705635032565,-500.0,0.00032876,2]
[312110281,1705635032574,-500.0,0.00032876,2]
[312110282,1705635032584,-1762.75,0.00032876,2]
[312110283,1705635032593,-607.89,0.00032876,2]
[312110284,1705635032602,-500.0,0.00032876,2]
[312110285,1705635032611,-500.0,0.00032876,2]
[312110286,1705635032620,-500.0,0.00032876,2]
[312110287,1705635032630,-500.0,0.00032876,2]
[312110288,1705635032639,-500.0,0.00032876,2]
[312110289,1705635032648,-202.79,0.00032876,2]
[312110290,1705635032658,-811.61,0.00032876,2]
[312110291,1705635032667,-707.16,0.00032876,2]
[312110292,1705635032676,-675.16,0.00032876,2]
[312110293,1705635032685,-500.0,0.00032876,2]
[312110294,1705635032694,-500.0,0.00032876,2]
[312110295,1705635032703,-500.0,0.00032876,2]
[312110296,1705635032712,-1093.27,0.00032876,2]
[312110297,1705635032721,-840.17,0.00032876,2]
[312110298,1705635032733,-621.68,0.00032876,2]
[312110299,1705635032743,-500.0,0.00032876,2]
[312110300,1705635032751,-843.22,0.00032876,2]
[312110301,1705635032761,-500.0,0.00032876,2]
[312110302,1705635032770,-500.0,0.00032876,2]
[312110303,1705635032779,-500.0,0.00032876,2]
[312110304,1705635032788,-500.0,0.00032876,2]
[312110305,1705635032798,-500.0,0.00032876,2]
[312110306,1705635032807,-500.0,0.00032876,2]
[312110307,1705635032816,-500.0,0.00032876,2]
[312110308,1705635032825,-500.0,0.00032876,2]
[312110309,1705635032835,-500.0,0.00032876,2]
[312110310,1705635032844,-7570.57,0.00032876,2]
[312110311,1705635032854,-500.0,0.00032876,2]
[312110312,1705635032863,-500.0,0.00032876,2]
[312110313,1705635032873,-475.042391,0.00032876,2]
[312110332,1705635039112,-24.957609,0.00032876,2]
[312110333,1705635039122,-261.51843576,0.00032876,2]
[312110334,1705635039131,-500.0,0.00032876,2]
[312110335,1705635039141,-1806.32,0.00032876,2]
[312110336,1705635039150,-500.0,0.00032876,2]
[312110337,1705635039159,-500.0,0.00032876,2]
[312110338,1705635039168,-500.0,0.00032876,2]
[312110339,1705635039177,-500.0,0.00032876,2]
[312110340,1705635039186,-1117.13,0.00032876,2]
[312110341,1705635039195,-744.72614683,0.00032876,2]
[312110342,1705635039206,-537.75037682,0.00032876,2]
[312110343,1705635039433,-0.1199587,0.00032876,2]
[312110344,1705635039445,-4305.67351765,0.00032876,2]
[312110345,1705635039454,-763.74,0.00032876,2]
[312110346,1705635039463,-1483.93,0.00032876,2]
[312110347,1705635039472,-500.0,0.00032876,2]
[312110348,1705635039481,-2752.47,0.00032876,2]
[312110349,1705635039492,-500.0,0.00032876,2]
[312110350,1705635039500,-503.94559309,0.00032876,2]
[312110351,1705635039510,-501.73513035,0.00032876,2]
[312110352,1705635039519,-500.0,0.00032876,2]
[312110353,1705635039528,-500.0,0.00032876,2]
[312110354,1705635039538,-500.0,0.00032876,2]
[312110355,1705635039548,-500.0,0.00032876,2]
[312110356,1705635039557,-500.0,0.00032876,2]
[312110357,1705635039566,-506.90799434,0.00032876,2]
[312110358,1705635039575,-500.0,0.00032876,2]
[312110359,1705635039585,-500.0,0.00032876,2]
[312110360,1705635039594,-500.0,0.00032876,2]
[312110361,1705635039603,-500.0,0.00032876,2]
[312110362,1705635039612,-518.27555561,0.00032876,2]
[312110363,1705635039621,-454.99446955,0.00032876,2]
[312110364,1705635039630,-500.0,0.00032876,2]
[312110365,1705635039639,-500.0,0.00032876,2]
[312110366,1705635039648,-502.83768509,0.00032876,2]
[312110367,1705635039657,-500.0,0.00032876,2]
[312110368,1705635039666,-500.0,0.00032876,2]
[312110369,1705635039675,-230.92803459,0.00032876,2]
[312110370,1705635039685,-500.0,0.00032876,2]
[312110371,1705635039694,-500.0,0.00032876,2]
[312110372,1705635039703,-500.0,0.00032876,2]
[312110373,1705635039713,-528.99,0.00032876,2]
[312110374,1705635039723,-506.25030617,0.00032876,2]
[312110375,1705635039732,-500.41281024,0.00032876,2]
[312110376,1705635039744,-500.0,0.00032876,2]
[312110377,1705635039753,-490.0,0.00032876,2]
[312110378,1705635039762,-504.20658948,0.00032876,2]
[312110379,1705635039772,-500.0,0.00032876,2]
[312110380,1705635039782,-503.57909718,0.00032876,2]
[312110381,1705635039791,-500.0,0.00032876,2]
[312110382,1705635039801,-608.15,0.00032876,2]
[312110383,1705635039810,-500.0,0.00032876,2]
[312110384,1705635039819,-2320.6,0.00032876,2]
[312110385,1705635039829,-504.49546555,0.00032876,2]
[312110386,1705635039840,-500.0,0.00032876,2]
[312110387,1705635039849,-501.48231904,0.00032876,2]
[312110388,1705635039859,-500.0,0.00032999,3]
[312110389,1705635039868,-10213.46732715,0.00033,4]
[312110390,1705635039878,-166.0,0.00033,2]
[312110391,1705635039887,-172.0,0.00033,2]
[312110392,1705635039896,-154.5351148,0.00033041,2]
[312110393,1705635039905,-500.0,0.00033149,3]
[312110394,1705635039915,-500.0,0.00033149,3]
[312110395,1705635039925,-500.0,0.0003315,3]
[312110396,1705635039934,-500.0,0.0003315,3]
[312110397,1705635039945,-500.0,0.0003315,3]
[312110398,1705635039954,-500.0,0.0003315,3]
[312110399,1705635039963,-500.0,0.0003315,3]
[312110400,1705635039972,-503.84127072,0.0003315,3]
[312110401,1705635039982,-500.0,0.0003315,14]
[312110402,1705635039993,-502.79560012,0.0003315,3]
[312110403,1705635040003,-500.0,0.0003315,3]
[312110404,1705635040011,-500.0,0.0003315,3]
[312110405,1705635040021,-500.0,0.0003315,3]
[312110406,1705635040029,-500.0,0.0003315,3]
[312110407,1705635040039,-500.0,0.0003315,3]
[312110408,1705635040048,-500.0,0.0003315,3]
[312110409,1705635040058,-500.0,0.0003315,3]
[312110410,1705635040067,-1762.75,0.0003315,3]
[312110411,1705635040076,-607.89,0.0003315,3]
[312110412,1705635040085,-500.0,0.0003315,3]
[312110413,1705635040094,-811.61,0.0003315,3]
[312110414,1705635040103,-707.16,0.0003315,3]
[312110415,1705635040112,-675.16,0.0003315,3]
[312110416,1705635040121,-1093.27,0.0003315,3]
[312110417,1705635040130,-840.17,0.0003315,3]
[312110418,1705635040139,-621.68,0.0003315,3]
[312110419,1705635040149,-500.0,0.0003315,3]
[312110420,1705635040158,-843.22,0.0003315,3]
[312110421,1705635040167,-500.0,0.0003315,3]
[312110422,1705635040262,-500.0,0.0003315,3]
[312110423,1705635040271,-7570.57,0.0003315,3]
[312110424,1705635040281,-500.0,0.0003315,3]
[312110425,1705635040290,-500.0,0.0003315,3]
[312110426,1705635040300,-500.0,0.0003315,3]
[312110428,1705635040311,-500.0,0.0003315,3]
[312110430,1705635040321,-1806.32,0.0003315,3]
[312110431,1705635040331,-500.0,0.0003315,3]
[312110432,1705635040340,-500.0,0.0003315,3]
[312110433,1705635040350,-1117.13,0.0003315,3]
[312110434,1705635040360,-5588.27,0.0003315,3]
[312110435,1705635040369,-763.74,0.0003315,3]
[312110436,1705635040380,-1483.93,0.0003315,3]
[312110437,1705635040389,-500.0,0.0003315,3]
[312110438,1705635040399,-2752.47,0.0003315,3]
[312110439,1705635040409,-501.5077667,0.0003315,3]
[312110440,1705635040419,-500.0,0.0003315,3]
[312110441,1705635040429,-500.0,0.0003315,3]
[312110442,1705635040439,-500.0,0.0003315,3]
[312110443,1705635040450,-510.74031725,0.0003315,3]
[312110444,1705635040459,-500.0,0.0003315,3]
[312110445,1705635040469,-500.0,0.0003315,3]
[312110446,1705635040478,-500.0,0.0003315,3]
[312110447,1705635040492,-504.0014974,0.0003315,3]
[312110448,1705635040502,-500.0,0.0003315,3]
[312110449,1705635040513,-504.42963995,0.0003315,3]
[312110450,1705635040522,-500.0,0.0003315,3]
[312110451,1705635040532,-500.0,0.0003315,3]
[312110452,1705635040542,-528.99,0.0003315,3]
[312110453,1705635040551,-500.0,0.0003315,3]
[312110454,1705635040561,-500.0,0.0003315,3]
[312110455,1705635040570,-608.15,0.0003315,3]
[312110456,1705635040580,-500.0,0.0003315,2]
[312110457,1705635040589,-2320.6,0.0003315,3]
[312110458,1705635040599,-500.0,0.0003315,3]
[312110460,1705635040608,-198.957615,0.00033178,2]
[312110461,1705635040618,-153.0,0.00033178,2]
[312110462,1705635040627,-500.0,0.00033323,3]
[312110463,1705635040637,-500.0,0.00033423,3]
[312110464,1705635040646,-500.0,0.00033424,3]
[312110465,1705635040655,-511.22320999,0.00033424,3]
[312110466,1705635040666,-500.0,0.00033424,3]
[312110467,1705635040675,-500.0,0.00033424,3]
[312110468,1705635040685,-500.0,0.00033424,3]
[312110469,1705635040694,-500.0,0.00033424,3]
[312110470,1705635040703,-500.0,0.00033424,3]
[312110471,1705635040713,-500.0,0.00033424,3]
[312110472,1705635040722,-546.101931,0.00033424,3]
[312110473,1705635040731,-500.0,0.00033424,3]
[312110474,1705635040744,-1762.75,0.00033424,3]
[312110475,1705635040753,-607.89,0.00033424,3]
[312110476,1705635040762,-500.0,0.00033424,3]
[312110477,1705635040772,-811.61,0.00033424,3]
[312110478,1705635040781,-707.16,0.00033424,3]
[312110479,1705635040791,-675.16,0.00033424,3]
[312110480,1705635040800,-1093.27,0.00033424,3]
[312110481,1705635040809,-840.17,0.00033424,3]
[312110482,1705635040818,-621.68,0.00033424,3]
[312110483,1705635040828,-500.0,0.00033424,3]
[312110484,1705635040838,-843.22,0.00033424,3]
[312110485,1705635040847,-500.0,0.00033424,3]
[312110486,1705635040857,-637.62449077,0.00033424,3]
[312110487,1705635040866,-7570.57,0.00033424,3]
[312110488,1705635040875,-500.0,0.00033424,3]
[312110489,1705635040885,-500.0,0.00033424,3]
[312110490,1705635040893,-500.0,0.00033424,3]
[312110491,1705635040903,-500.0,0.00033424,3]
[312110492,1705635040912,-1806.32,0.00033424,3]
[312110493,1705635040921,-500.0,0.00033424,3]
[312110494,1705635040931,-500.0,0.00033424,3]
[312110495,1705635040940,-1117.13,0.00033424,3]
[312110496,1705635040950,-5588.27,0.00033424,3]
[312110497,1705635040959,-763.74,0.00033424,3]
[312110498,1705635040969,-1483.93,0.00033424,3]
[312110499,1705635040978,-500.0,0.00033424,3]
[312110500,1705635040989,-2752.47,0.00033424,3]
[312110501,1705635040998,-500.0,0.00033424,3]
[312110502,1705635041007,-500.0,0.00033424,3]
[312110503,1705635041017,-500.0,0.00033424,3]
[312110504,1705635041027,-500.0,0.00033424,3]
[312110505,1705635041036,-500.0,0.00033424,3]
[312110506,1705635041045,-500.0,0.00033424,3]
[312110507,1705635041054,-500.0,0.00033424,3]
[312110508,1705635041064,-500.0,0.00033424,3]
[312110509,1705635041073,-528.99,0.00033424,3]
[312110510,1705635041082,-504.07827703,0.00033424,3]
[312110511,1705635041091,-500.0,0.00033424,3]
[312110512,1705635041100,-2320.6,0.00033424,3]
[312110513,1705635041110,-608.15,0.00033424,3]
[312110514,1705635041118,-507.82039817,0.00033424,2]
[312110515,1705635041127,-500.0,0.00033697,3]
[312110516,1705635041136,-385.55693188,0.00033698,3]
[312110517,1705635041145,-500.0,0.00033698,3]
[312110518,1705635041154,-500.0,0.00033698,3]
[312110519,1705635041163,-500.0,0.00033698,3]
[312110520,1705635041172,-500.0,0.00033698,3]
[312110521,1705635041181,-500.0,0.00033698,3]
[312110522,1705635041191,-500.0,0.00033698,3]
[312110524,1705635041200,-500.0,0.00033698,3]
[312110526,1705635041211,-1762.75,0.00033698,3]
[312110528,1705635041221,-607.89,0.00033698,3]
[312110529,1705635041230,-500.0,0.00033698,3]
[312110530,1705635041244,-811.61,0.00033698,3]
[312110531,1705635041256,-707.16,0.00033698,3]
[312110532,1705635041267,-675.16,0.00033698,3]
[312110533,1705635041278,-1093.27,0.00033698,3]
[312110534,1705635041287,-840.17,0.00033698,3]
[312110535,1705635041296,-621.68,0.00033698,3]
[312110536,1705635041307,-843.22,0.00033698,3]
[312110537,1705635041317,-500.0,0.00033698,3]
[312110538,1705635041330,-500.0,0.00033698,3]
[312110539,1705635041340,-7570.57,0.00033698,3]
[312110540,1705635041350,-500.0,0.00033698,3]
[312110541,1705635041360,-500.0,0.00033698,3]
[312110542,1705635041370,-500.0,0.00033698,3]
[312110543,1705635041379,-500.0,0.00033698,3]
[312110544,1705635041387,-1806.32,0.00033698,3]
[312110545,1705635041397,-500.0,0.00033698,3]
[312110546,1705635041406,-500.0,0.00033698,3]
[312110547,1705635041416,-1117.13,0.00033698,3]
[312110548,1705635041425,-5588.27,0.00033698,3]
[312110549,1705635041434,-763.74,0.00033698,3]
[312110550,1705635041444,-1483.93,0.00033698,3]
[312110551,1705635041453,-500.0,0.00033698,3]
[312110552,1705635041462,-2752.47,0.00033698,3]
[312110553,1705635041471,-500.0,0.00033698,3]
[312110554,1705635041481,-502.43897131,0.00033698,3]
[312110555,1705635041491,-500.0,0.00033698,3]
[312110556,1705635041501,-500.0,0.00033698,3]
[312110557,1705635041510,-500.0,0.00033698,3]
[312110558,1705635041519,-500.0,0.00033698,3]
[312110559,1705635041527,-500.0,0.00033698,3]
[312110560,1705635041537,-485.51076799,0.00033698,3]
[312110561,1705635041546,-528.99,0.00033698,3]
[312110562,1705635041555,-500.0,0.00033698,3]
[312110563,1705635041564,-608.15,0.00033698,3]
[312110564,1705635041574,-2320.6,0.00033698,3]
[312110565,1705635041583,-500.0,0.00033971,3]
[312110566,1705635041592,-500.0,0.00033972,3]
[312110567,1705635041601,-500.0,0.00033972,3]
[312110568,1705635041610,-500.0,0.00033972,3]
[312110569,1705635041620,-390.50952533,0.00033972,3]
[312110570,1705635041629,-500.0,0.00033972,3]
[312110571,1705635041638,-1762.75,0.00033972,3]
[312110572,1705635041648,-607.89,0.00033972,3]
[312110573,1705635041657,-500.0,0.00033972,3]
[312110574,1705635041667,-811.61,0.00033972,3]
[312110575,1705635041676,-707.16,0.00033972,3]
[312110576,1705635041685,-675.16,0.00033972,3]
[312110577,1705635041694,-1093.27,0.00033972,3]
[312110578,1705635041703,-840.17,0.00033972,3]
[312110579,1705635041712,-621.68,0.00033972,3]
[312110580,1705635041722,-843.22,0.00033972,3]
[312110581,1705635041731,-500.0,0.00033972,3]
[312110582,1705635041742,-226.67704984,0.00033972,3]
[312110583,1705635041752,-7570.57,0.00033972,3]
[312110584,1705635041761,-611.02220201,0.00033972,3]
[312110585,1705635041770,-500.0,0.00033972,3]
[312110586,1705635041780,-500.0,0.00033972,3]
[312110587,1705635041789,-1806.32,0.00033972,3]
[312110588,1705635041798,-500.0,0.00033972,3]
[312110589,1705635041807,-500.0,0.00033972,3]
[312110590,1705635041816,-1117.13,0.00033972,3]
[312110591,1705635041825,-5588.27,0.00033972,3]
[312110592,1705635041835,-763.74,0.00033972,3]
[312110593,1705635041844,-1483.93,0.00033972,3]
[312110594,1705635041854,-500.0,0.00033972,3]
[312110595,1705635041863,-2752.47,0.00033972,3]
[312110596,1705635041872,-500.0,0.00033972,3]
[312110597,1705635041882,-500.0,0.00033972,3]
[312110598,1705635041891,-500.0,0.00033972,3]
[312110599,1705635041900,-500.0,0.00033972,3]
[312110600,1705635041910,-500.0,0.00033972,3]
[312110601,1705635041919,-500.0,0.00033972,3]
[312110602,1705635041929,-528.99,0.00033972,3]
[312110603,1705635041938,-500.0,0.00033972,3]
[312110604,1705635041947,-608.15,0.00033972,3]
[312110605,1705635041957,-2320.6,0.00033972,3]
[312110606,1705635041966,-155.0,0.00034,2]
[312110607,1705635041977,-151.32984646,0.00034056,2]
[312110608,1705635041986,-592.0,0.00034216,30]
[312110609,1705635041997,-592.0,0.00034226,30]
[312110610,1705635042006,-592.0,0.00034236,30]
[312110611,1705635042016,-500.0,0.00034245,3]
[312110612,1705635042026,-396.94620069,0.00034246,3]
[312110613,1705635042035,-500.0,0.00034246,3]
[312110614,1705635042044,-500.0,0.00034246,3]
[312110615,1705635042054,-1762.75,0.00034246,3]
[312110616,1705635042062,-607.89,0.00034246,3]
[312110617,1705635042083,-500.0,0.00034246,3]
[312110618,1705635042093,-811.61,0.00034246,3]
[312110619,1705635042103,-707.16,0.00034246,3]
[312110620,1705635042113,-675.16,0.00034246,3]
[312110621,1705635042122,-1093.27,0.00034246,3]
[312110622,1705635042132,-840.17,0.00034246,3]
[312110623,1705635042141,-621.68,0.00034246,3]
[312110624,1705635042151,-843.22,0.00034246,3]
[312110625,1705635042160,-500.0,0.00034246,3]
[312110626,1705635042170,-7570.57,0.00034246,3]